[Event "Lueneburg Open-A 2019"]
[Site "Lueneburg"]
[Date "2019.08.07"]
[Round "5.36"]
[White "Nielsen, Joerg"]
[Black "Buchaeckert, Juergen"]
[Result "1/2-1/2"]
[ECO "D71"]
[WhiteElo "2000"]
[BlackElo "1839"]
[Annotator "NA"]
[PlyCount "89"]
[EventDate "2019.08.03"]
[EventType "swiss"]
[EventCountry "GER"]
[SourceTitle "playchess.com"]
[Source "ChessBase"]
[SourceQuality "1"]
[TimeControl "40/5400+30:1800+30"]

1. d4 {[%emt 0:00:00]} Nf6 {[%emt 0:00:00]} 2. c4 {[%emt 0:00:00]} g6 {[%emt 0:00:00]} 3. Nc3 {[%emt 0:00:00]} d5 {[%emt 0:00:00]} 4. cxd5 {[%emt 0:00:00]} Nxd5 {[%emt 0:00:00]} 5. g3 {[%emt 0:00:27]} Bg7 {[%emt 0:00:50]} 6. Bg2 {[%emt 0:00:07]} Nb6 {[%emt 0:00:28]} 7. e3 {[%emt 0:01:51]} O-O {[%emt 0:01:14]} 8. Nge2 {[%emt 0:00:18]} Nc6 {[%emt 0:04:20]} 9. O-O {[%emt 0:02:46]} a5 {[%emt 0:07:56]} 10. b3 {[%emt 0:03:39]} Bg4 {[%emt 0:01:45]} 11. h3 {[%emt 0:03:37]} Bxe2 {[%emt 0:00:52]} 12. Qxe2 {[%emt 0:03:29]} a4 {[%emt 0:02:50]} 13. Bd2 {[%emt 0:02:46]} Re8 {[%emt 0:11:08]} 14. Rfc1 {[%emt 0:16:42]} e6 {[%emt 0:11:16]} 15. Nb5 {[%emt 0:03:21]} axb3 {[%emt 0:03:59]} 16. axb3 {[%emt 0:00:34]} Rxa1 {[%emt 0:02:34]} 17. Rxa1 {[%emt 0:00:08]} Qd7 {[%emt 0:03:03]} 18. Rc1 {[%emt 0:05:27]} Ra8 {[%emt 0:06:04]} 19. Qd3 {[%emt 0:14:06]} Ra2 {[%emt 0:07:29]} 20. Be1 {[%emt 0:00:41]} h5 {[%emt 0:05:02]} 21. Qb1 {[%emt 0:02:58]} Ra6 {[%emt 0:01:25]} 22. h4 {[%emt 0:05:38]} Nc8 {[%emt 0:01:09]} 23. Bf1 {[%emt 0:07:25]} Ra8 {[%emt 0:01:01]} 24. Qc2 {[%emt 0:02:31]} Nd6 {[%emt 0:06:03]} 25. Nxd6 {[%emt 0:01:07]} cxd6 {[%emt 0:00:03]} 26. Bb5 {[%emt 0:01:23]} Rc8 {[%emt 0:00:13]} 27. Qd3 {[%emt 0:05:29]} d5 {[%emt 0:03:32]} 28. Ba5 {[%emt 0:03:48]} Bf8 {[%emt 0:01:24]} 29. Qd2 {[%emt 0:02:27]} Qd6 {[%emt 0:01:25]} 30. Bb6 {[%emt 0:04:03]} Qb8 {[%emt 0:03:59]} 31. Kg2 {[%emt 0:02:52]} Be7 {[%emt 0:03:01]} 32. Bd3 {[%emt 0:02:27]} Kg7 {[%emt 0:01:03]} 33. Ra1 {[%emt 0:01:32]} Kh7 {[%emt 0:03:48]} 34. Ra4 {[%emt 0:00:10]} Kg7 {[%emt 0:00:47]} 35. Bb1 {[%emt 0:00:18]} Kh7 {[%emt 0:00:43]} 36. Qe2 {[%emt 0:00:26]} Kg7 {[%emt 0:00:28]} 37. e4 {[%emt 0:00:16]} dxe4 {[%emt 0:01:00]} 38. Qxe4 {[%emt 0:00:19]} Qd6 {[%emt 0:02:00]} 39. Qf3 {[%emt 0:02:48]} Bf6 {[%emt 0:01:21]} 40. Bc5 {[%emt 0:00:26]} Qd8 {[%emt 0:01:40]} 41. Be4 {[%emt 0:05:22]} Nxd4 {[%emt 0:06:51]} 42. Bxd4 {[%emt 0:00:42]} Bxd4 {[%emt 0:00:09]} 43. Qd3 {[%emt 0:01:53]} Bb6 {[%emt 0:01:05]} 44. Qxd8 {[%emt 0:04:07]} Rxd8 {[%emt 0:01:13]} 45. Ra2 {[%emt 0:00:58]} 1/2-1/2

[Event "Lueneburg Open-A 2019"]
[Site "Lueneburg"]
[Date "2019.08.07"]
[Round "5.37"]
[White "Britsch, Benjamin"]
[Black "Bosselmann, Tom Linus"]
[Result "0-1"]
[ECO "E81"]
[WhiteElo "1835"]
[BlackElo "2000"]
[Annotator "NA"]
[PlyCount "84"]
[EventDate "2019.08.03"]
[EventType "swiss"]
[EventCountry "GER"]
[SourceTitle "playchess.com"]
[Source "ChessBase"]
[SourceQuality "1"]
[TimeControl "40/5400+30:1800+30"]

1. d4 {[%emt 0:00:49]} g6 {[%emt 0:29:34]} 2. c4 {[%emt 0:00:05]} Nf6 {[%emt 0:00:08]} 3. Nc3 {[%emt 0:00:06]} Bg7 {[%emt 0:00:06]} 4. e4 {[%emt 0:00:06]} d6 {[%emt 0:00:04]} 5. Bg5 {[%emt 0:00:17]} Nbd7 {[%emt 0:00:23]} 6. f3 {[%emt 0:00:13]} O-O {[%emt 0:00:22]} 7. Qd2 {[%emt 0:00:03]} c5 {[%emt 0:01:52]} 8. d5 {[%emt 0:00:02]} a6 {[%emt 0:01:06]} 9. Nh3 {[%emt 0:00:10]} Qa5 {[%emt 0:01:54]} 10. Nf2 {[%emt 0:01:17]} Rb8 {[%emt 0:01:02]} 11. a4 {[%emt 0:03:35]} Re8 {[%emt 0:00:34]} 12. Ra3 {[%emt 0:01:45]} e6 {[%emt 0:07:30]} 13. dxe6 {[%emt 0:01:01]} Rxe6 {[%emt 0:01:21]} 14. Be2 {[%emt 0:05:52]} Ne5 {[%emt 0:05:19]} 15. f4 {[%emt 0:11:43]} Nc6 {[%emt 0:00:46]} 16. f5 {[%emt 0:07:08]} Re8 {[%emt 0:00:54]} 17. Bxf6 {[%emt 0:13:21]} Bxf6 {[%emt 0:25:57]} 18. Qxd6 {[%emt 0:00:04]} Bxc3+ {[%emt 0:00:45]} 19. Rxc3 {[%emt 0:01:35]} Bxf5 {[%emt 0:03:15]} 20. exf5 {[%emt 0:04:19]} Nd4 {[%emt 0:00:38]} 21. Ne4 {[%emt 0:02:13]} Nxe2 {[%emt 0:00:44]} 22. Nf6+ {[%emt 0:01:35]} Kh8 {[%emt 0:04:11]} 23. Nxe8 {[%emt 0:00:53]} Rxe8 {[%emt 0:00:06]} 24. Qd7 {[%emt 0:00:51]} Re4 {[%emt 0:03:35]} 25. Qc8+ {[%emt 0:02:35]} Kg7 {[%emt 0:00:31]} 26. f6+ {[%emt 0:01:41]} Kxf6 {[%emt 0:00:50]} 27. Qh8+ {[%emt 0:02:19]} Ke7 {[%emt 0:00:13]} 28. Kf2 {[%emt 0:01:22]} Nxc3 {[%emt 0:00:23]} 29. bxc3 {[%emt 0:00:03]} Qxa4 {[%emt 0:01:01]} 30. Rf1 {[%emt 0:00:36]} Rf4+ {[%emt 0:03:36]} 31. Kg1 {[%emt 0:00:10]} Rxf1+ {[%emt 0:00:24]} 32. Kxf1 {[%emt 0:00:02]} Qxc4+ {[%emt 0:00:07]} 33. Kg1 {[%emt 0:00:35]} Qe6 {[%emt 0:00:38]} 34. h3 {[%emt 0:00:18]} Qf6 {[%emt 0:02:35]} 35. Qc8 {[%emt 0:00:40]} Qxc3 {[%emt 0:00:48]} 36. Qxb7+ {[%emt 0:00:04]} Kf8 {[%emt 0:00:07]} 37. Qxa6 {[%emt 0:00:15]} Qd4+ {[%emt 0:00:19]} 38. Kh1 {[%emt 0:00:22]} c4 {[%emt 0:00:17]} 39. Qc8+ {[%emt 0:03:16]} Kg7 {[%emt 0:00:12]} 40. g4 {[%emt 0:00:55]} h6 {[%emt 0:01:56]} 41. h4 {[%emt 0:34:18]} Qe4+ {[%emt 0:30:52]} 42. Kh2 {[%emt 0:00:08]} Qe6 {[%emt 0:00:28]} 0-1

[Event "Lueneburg Open-A 2019"]
[Site "Lueneburg"]
[Date "2019.08.08"]
[Round "6.1"]
[White "Ertan, Can"]
[Black "Kollars, Dmitrij"]
[Result "1/2-1/2"]
[ECO "C90"]
[WhiteElo "2396"]
[BlackElo "2581"]
[Annotator "ChessBase"]
[PlyCount "96"]
[EventDate "2019.08.03"]
[EventType "swiss"]
[EventCountry "GER"]
[SourceTitle "playchess.com"]
[Source "ChessBase"]
[SourceQuality "1"]
[TimeControl "40/5400+30:1800+30"]

1. e4 {[%emt 0:00:00]} e5 {[%emt 0:00:00]} 2. Nf3 {[%emt 0:00:00]} Nc6 {[%emt 0:00:00]} 3. Bb5 {[%emt 0:00:00]} a6 {[%emt 0:00:00]} 4. Ba4 {[%emt 0:00:00]} Nf6 {[%emt 0:00:03]} 5. O-O {[%emt 0:00:00]} Be7 {[%emt 0:00:18]} 6. Re1 {[%emt 0:00:00]} b5 {[%emt 0:00:12]} 7. Bb3 {[%emt 0:00:00]} d6 {[%emt 0:00:05]} 8. a4 {[%emt 0:00:03]} Bd7 {[%emt 0:00:35]} 9. Nc3 {[%emt 0:00:07]} Na5 {[%emt 0:05:35]} 10. Ba2 {[%emt 0:00:04]} b4 {[%emt 0:08:34]} 11. Nd5 {[%emt 0:00:04]} Nxd5 {[%emt 0:00:43]} 12. Bxd5 {[%emt 0:00:25]} c6 {[%emt 0:04:51]} 13. Ba2 {[%emt 0:00:04]} O-O {[%emt 0:02:57]} 14. c3 {[%emt 0:00:47]} Rb8 {[%emt 0:09:26]} 15. d4 {[%emt 0:00:31]} exd4 {[%emt 0:04:26]} 16. cxd4 {[%emt 0:00:33]} b3 {[%emt 0:01:46]} 17. Bb1 {[%emt 0:00:05]} c5 {[%emt 0:01:27]} 18. h3 {[%emt 0:19:11]} cxd4 {[%emt 0:07:54]} 19. Qxd4 {[%emt 0:03:21]} Be6 {[%emt 0:02:26]} 20. Qd3 {[%emt 0:10:56]} Bc4 {[%emt 0:02:58]} 21. Qe3 {[%emt 0:00:39]} Bf6 {[%emt 0:03:00]} 22. Rd1 {[%emt 0:00:43]} Re8 {[%emt 0:06:41]} 23. Bd3 {[%emt 0:09:30]} Qc8 {[%emt 0:07:56]} 24. Bd2 {[%emt 0:17:51]} Bxd3 {[%emt 0:00:32]} 25. Qxd3 {[%emt 0:00:05]} Bxb2 {[%emt 0:06:07]} 26. Bxa5 {[%emt 0:00:51]} Bxa1 {[%emt 0:00:03]} 27. Rxa1 {[%emt 0:00:04]} Qc2 {[%emt 0:02:13]} 28. Ne1 {[%emt 0:08:48]} Qxd3 {[%emt 0:01:14]} 29. Nxd3 {[%emt 0:00:03]} Rxe4 {[%emt 0:00:06]} 30. Nb2 {[%emt 0:06:02]} Re2 {[%emt 0:01:41]} 31. Rb1 {[%emt 0:00:15]} Rc2 {[%emt 0:01:28]} 32. Kf1 {[%emt 0:04:50]} d5 {[%emt 0:02:47]} 33. Nd3 {[%emt 0:02:02]} Rc4 {[%emt 0:05:36]} 34. Nb2 {[%emt 0:00:04]} Rc2 {[%emt 0:02:12]} 35. Nd3 {[%emt 0:00:03]} f6 {[%emt 0:02:38]} 36. Nb4 {[%emt 0:07:00]} Rc4 {[%emt 0:00:58]} 37. Rxb3 {[%emt 0:00:05]} d4 {[%emt 0:01:16]} 38. g3 {[%emt 0:03:37]} d3 {[%emt 0:03:20]} 39. Rxd3 {[%emt 0:00:49]} Rcxb4 {[%emt 0:00:35]} 40. Bxb4 {[%emt 0:00:06]} Rxb4 {[%emt 0:00:04]} 41. a5 {[%emt 0:31:17]} Rb5 {[%emt 0:30:24]} 42. Ra3 {[%emt 0:00:42]} Kf7 {[%emt 0:01:04]} 43. h4 {[%emt 0:03:14]} h5 {[%emt 0:00:43]} 44. Kg2 {[%emt 0:05:58]} Ke6 {[%emt 0:00:20]} 45. f3 {[%emt 0:00:32]} f5 {[%emt 0:00:00]} 46. Kf2 {[%emt 0:00:00]} Re5 {[%emt 0:00:00]} 47. Ra4 {[%emt 0:00:00]} g6 {[%emt 0:00:00]} 48. g4 {[%emt 0:00:00]} fxg4 {[%emt 0:00:00]} 1/2-1/2

[Event "Lueneburg Open-A 2019"]
[Site "Lueneburg"]
[Date "2019.08.08"]
[Round "6.2"]
[White "Carlstedt, Jonathan"]
[Black "Ovsejevitsch, Sergei"]
[Result "0-1"]
[ECO "A46"]
[WhiteElo "2408"]
[BlackElo "2590"]
[Annotator "ChessBase"]
[PlyCount "66"]
[EventDate "2019.08.03"]
[EventType "swiss"]
[EventCountry "GER"]
[SourceTitle "playchess.com"]
[Source "ChessBase"]
[SourceQuality "1"]
[TimeControl "40/5400+30:1800+30"]

1. d4 {[%emt 0:00:03]} Nf6 {[%emt 0:00:00]} 2. Nf3 {[%emt 0:00:05]} e6 {[%emt 0:00:00]} 3. Bf4 {[%emt 0:00:06]} b5 {[%emt 0:01:21]} 4. e4 {[%emt 0:09:45]} Nxe4 {[%emt 0:01:34]} 5. Bxb5 {[%emt 0:00:10]} Bb7 {[%emt 0:12:02]} 6. O-O {[%emt 0:04:19]} Bd6 {[%emt 0:04:10]} 7. Bxd6 {[%emt 0:00:59]} cxd6 {[%emt 0:00:08]} 8. c4 {[%emt 0:04:54]} O-O {[%emt 0:02:28]} 9. Qd3 {[%emt 0:02:30]} Qa5 {[%emt 0:10:46]} 10. a3 {[%emt 0:07:06]} d5 {[%emt 0:01:40]} 11. cxd5 {[%emt 0:06:18]} Bxd5 {[%emt 0:01:01]} 12. b4 {[%emt 0:01:09]} Qb6 {[%emt 0:01:02]} 13. Nbd2 {[%emt 0:00:41]} Nxd2 {[%emt 0:04:24]} 14. Nxd2 {[%emt 0:00:14]} a5 {[%emt 0:09:16]} 15. bxa5 {[%emt 0:04:54]} Rxa5 {[%emt 0:00:19]} 16. a4 {[%emt 0:01:14]} Nc6 {[%emt 0:02:59]} 17. Nc4 {[%emt 0:04:22]} Bxc4 {[%emt 0:00:42]} 18. Qxc4 {[%emt 0:00:10]} Nxd4 {[%emt 0:04:59]} 19. Bxd7 {[%emt 0:01:21]} Rg5 {[%emt 0:05:16]} 20. Rab1 {[%emt 0:14:32]} Qa7 {[%emt 0:06:16]} 21. Bc6 {[%emt 0:00:19]} Rc8 {[%emt 0:03:52]} 22. Rfd1 {[%emt 0:00:18]} Rg4 {[%emt 0:01:38]} 23. Rb4 {[%emt 0:08:28]} Rxc6 {[%emt 0:07:26]} 24. Qxc6 {[%emt 0:03:53]} Nxc6 {[%emt 0:00:06]} 25. Rxg4 {[%emt 0:00:02]} h5 {[%emt 0:03:37]} 26. Rc4 {[%emt 0:01:13]} Ne7 {[%emt 0:00:20]} 27. Rb1 {[%emt 0:00:24]} Nd5 {[%emt 0:00:47]} 28. g3 {[%emt 0:00:23]} Qa5 {[%emt 0:01:30]} 29. Ra1 {[%emt 0:03:11]} g5 {[%emt 0:00:27]} 30. h4 {[%emt 0:00:19]} g4 {[%emt 0:02:01]} 31. Rd1 {[%emt 0:00:52]} Kg7 {[%emt 0:00:16]} 32. Ra1 {[%emt 0:01:43]} Ne7 {[%emt 0:00:39]} 33. Rd1 {[%emt 0:03:40]} Ng6 {[%emt 0:00:12]} 0-1

[Event "Lueneburg Open-A 2019"]
[Site "Lueneburg"]
[Date "2019.08.08"]
[Round "6.3"]
[White "Buchenau, Frank"]
[Black "Vorobiov, Evgeny E."]
[Result "0-1"]
[ECO "B21"]
[WhiteElo "2294"]
[BlackElo "2578"]
[Annotator "ChessBase"]
[PlyCount "64"]
[EventDate "2019.08.03"]
[EventType "swiss"]
[EventCountry "GER"]
[SourceTitle "playchess.com"]
[Source "ChessBase"]
[SourceQuality "1"]
[TimeControl "40/5400+30:1800+30"]

1. e4 {[%emt 0:00:00]} c5 {[%emt 0:00:00]} 2. d3 {[%emt 0:00:00]} Nc6 {[%emt 0:00:20]} 3. f4 {[%emt 0:00:00]} d5 {[%emt 0:02:19]} 4. Be2 {[%emt 0:00:43]} g6 {[%emt 0:04:57]} 5. Nf3 {[%emt 0:02:21]} Bg7 {[%emt 0:01:23]} 6. O-O {[%emt 0:00:24]} Nf6 {[%emt 0:00:44]} 7. e5 {[%emt 0:00:33]} Ng4 {[%emt 0:00:12]} 8. h3 {[%emt 0:05:05]} Nh6 {[%emt 0:00:25]} 9. Be3 {[%emt 0:04:18]} d4 {[%emt 0:02:52]} 10. Bf2 {[%emt 0:01:55]} f6 {[%emt 0:01:06]} 11. exf6 {[%emt 0:04:04]} exf6 {[%emt 0:00:28]} 12. c3 {[%emt 0:02:16]} O-O {[%emt 0:17:44]} 13. b4 {[%emt 0:12:43]} cxb4 {[%emt 0:04:07]} 14. Qb3+ {[%emt 0:06:20]} Kh8 {[%emt 0:01:03]} 15. cxb4 {[%emt 0:05:22]} Nf5 {[%emt 0:03:03]} 16. b5 {[%emt 0:04:21]} Nce7 {[%emt 0:01:14]} 17. Re1 {[%emt 0:19:45]} Nd5 {[%emt 0:09:21]} 18. Nxd4 {[%emt 0:13:50]} Nxd4 {[%emt 0:01:47]} 19. Bxd4 {[%emt 0:00:13]} Nxf4 {[%emt 0:00:12]} 20. Qb4 {[%emt 0:07:13]} a5 {[%emt 0:23:03]} 21. bxa6 {[%emt 0:02:34]} bxa6 {[%emt 0:02:58]} 22. Bf1 {[%emt 0:03:28]} Rb8 {[%emt 0:02:58]} 23. Qc3 {[%emt 0:01:18]} Ne6 {[%emt 0:01:57]} 24. Bf2 {[%emt 0:01:38]} f5 {[%emt 0:03:09]} 25. d4 {[%emt 0:00:02]} f4 {[%emt 0:04:28]} 26. Rd1 {[%emt 0:00:59]} f3 {[%emt 0:00:24]} 27. Na3 {[%emt 0:00:56]} fxg2 {[%emt 0:00:27]} 28. Bxg2 {[%emt 0:00:16]} Nf4 {[%emt 0:00:48]} 29. Bf1 {[%emt 0:00:29]} Bxh3 {[%emt 0:01:15]} 30. Bxa6 {[%emt 0:00:24]} Rb2 {[%emt 0:02:30]} 31. Qg3 {[%emt 0:01:24]} Bc8 {[%emt 0:02:28]} 32. Bf1 {[%emt 0:00:17]} Rxf2 {[%emt 0:01:09]} 0-1

[Event "Lueneburg Open-A 2019"]
[Site "Lueneburg"]
[Date "2019.08.08"]
[Round "6.4"]
[White "Sebastian, Dirk"]
[Black "Poeck, Ole"]
[Result "1/2-1/2"]
[ECO "C55"]
[WhiteElo "2453"]
[BlackElo "2259"]
[Annotator "ChessBase"]
[PlyCount "53"]
[EventDate "2019.08.03"]
[EventType "swiss"]
[EventCountry "GER"]
[SourceTitle "playchess.com"]
[Source "ChessBase"]
[SourceQuality "1"]
[TimeControl "40/5400+30:1800+30"]

1. e4 {[%emt 0:00:00]} e5 {[%emt 0:00:00]} 2. Nf3 {[%emt 0:00:00]} Nc6 {[%emt 0:00:00]} 3. Bc4 {[%emt 0:00:00]} Nf6 {[%emt 0:00:00]} 4. d3 {[%emt 0:00:21]} h6 {[%emt 0:00:09]} 5. c3 {[%emt 0:03:29]} d6 {[%emt 0:00:14]} 6. Bb3 {[%emt 0:01:21]} g6 {[%emt 0:00:06]} 7. O-O {[%emt 0:01:39]} Bg7 {[%emt 0:00:22]} 8. Re1 {[%emt 0:03:06]} O-O {[%emt 0:00:12]} 9. Nbd2 {[%emt 0:04:35]} d5 {[%emt 0:00:47]} 10. exd5 {[%emt 0:09:42]} Nxd5 {[%emt 0:00:37]} 11. Nc4 {[%emt 0:00:50]} Re8 {[%emt 0:00:43]} 12. Ba4 {[%emt 0:03:37]} f6 {[%emt 0:08:30]} 13. Bc2 {[%emt 0:03:35]} Kh7 {[%emt 0:07:41]} 14. d4 {[%emt 0:09:40]} exd4 {[%emt 0:02:43]} 15. Rxe8 {[%emt 0:00:29]} Qxe8 {[%emt 0:00:11]} 16. cxd4 {[%emt 0:04:38]} Bg4 {[%emt 0:17:27]} 17. Ne3 {[%emt 0:12:59]} Bxf3 {[%emt 0:13:50]} 18. gxf3 {[%emt 0:00:34]} Nf4 {[%emt 0:03:21]} 19. Kh1 {[%emt 0:17:15]} Qd7 {[%emt 0:10:07]} 20. Nf5 {[%emt 0:03:16]} Nd5 {[%emt 0:05:29]} 21. Nxg7 {[%emt 0:00:55]} Kxg7 {[%emt 0:00:34]} 22. Be3 {[%emt 0:03:59]} Qh3 {[%emt 0:02:31]} 23. Be4 {[%emt 0:01:13]} Rd8 {[%emt 0:02:11]} 24. Qb3 {[%emt 0:06:21]} Nce7 {[%emt 0:07:16]} 25. f4 {[%emt 0:01:06]} Qe6 {[%emt 0:01:29]} 26. Bg2 {[%emt 0:00:17]} b6 {[%emt 0:00:46]} 27. Rc1 {[%emt 0:03:18]} 1/2-1/2

[Event "Lueneburg Open-A 2019"]
[Site "Lueneburg"]
[Date "2019.08.08"]
[Round "6.5"]
[White "Lubbe, Melanie"]
[Black "Feuerstack, Aljoscha"]
[Result "0-1"]
[ECO "B15"]
[WhiteElo "2258"]
[BlackElo "2441"]
[Annotator "ChessBase"]
[PlyCount "148"]
[EventDate "2019.08.03"]
[EventType "swiss"]
[EventCountry "GER"]
[SourceTitle "playchess.com"]
[Source "ChessBase"]
[SourceQuality "1"]
[TimeControl "40/5400+30:1800+30"]

1. e4 {[%emt 0:00:00]} c6 {[%emt 0:00:00]} 2. d4 {[%emt 0:00:00]} d5 {[%emt 0:00:00]} 3. Nc3 {[%emt 0:00:00]} dxe4 {[%emt 0:00:00]} 4. Nxe4 {[%emt 0:00:00]} Nf6 {[%emt 0:00:00]} 5. Nxf6+ {[%emt 0:00:27]} exf6 {[%emt 0:00:00]} 6. c3 {[%emt 0:02:21]} Bd6 {[%emt 0:00:16]} 7. Bd3 {[%emt 0:00:53]} O-O {[%emt 0:00:09]} 8. Ne2 {[%emt 0:01:58]} Re8 {[%emt 0:00:39]} 9. O-O {[%emt 0:01:27]} Nd7 {[%emt 0:04:42]} 10. Bf4 {[%emt 0:05:24]} Nf8 {[%emt 0:03:23]} 11. Bxd6 {[%emt 0:03:55]} Qxd6 {[%emt 0:00:06]} 12. Ng3 {[%emt 0:00:44]} g6 {[%emt 0:06:40]} 13. Ne4 {[%emt 0:07:18]} Qd8 {[%emt 0:00:42]} 14. Re1 {[%emt 0:16:46]} Be6 {[%emt 0:11:13]} 15. Qf3 {[%emt 0:12:33]} f5 {[%emt 0:03:38]} 16. Nc5 {[%emt 0:00:59]} Bd5 {[%emt 0:20:38]} 17. Rxe8 {[%emt 0:07:13]} Qxe8 {[%emt 0:00:15]} 18. Qg3 {[%emt 0:00:33]} Qb8 {[%emt 0:16:43]} 19. Re1 {[%emt 0:10:10]} Ne6 {[%emt 0:09:54]} 20. Nxe6 {[%emt 0:08:31]} Qxg3 {[%emt 0:01:53]} 21. hxg3 {[%emt 0:00:05]} Bxe6 {[%emt 0:00:30]} 22. a3 {[%emt 0:02:12]} Rd8 {[%emt 0:01:23]} 23. Re5 {[%emt 0:01:44]} b6 {[%emt 0:04:44]} 24. Be2 {[%emt 0:00:38]} Kg7 {[%emt 0:01:19]} 25. Bf3 {[%emt 0:02:20]} Rd6 {[%emt 0:01:45]} 26. b4 {[%emt 0:00:23]} Kf6 {[%emt 0:02:07]} 27. a4 {[%emt 0:03:16]} Bd7 {[%emt 0:00:39]} 28. Re1 {[%emt 0:01:34]} g5 {[%emt 0:00:25]} 29. a5 {[%emt 0:02:17]} bxa5 {[%emt 0:02:56]} 30. bxa5 {[%emt 0:00:02]} g4 {[%emt 0:00:05]} 31. Be2 {[%emt 0:00:22]} Re6 {[%emt 0:03:32]} 32. Kf1 {[%emt 0:00:27]} c5 {[%emt 0:00:44]} 33. dxc5 {[%emt 0:03:08]} Bc6 {[%emt 0:00:12]} 34. Rd1 {[%emt 0:00:39]} Ke7 {[%emt 0:00:42]} 35. Rb1 {[%emt 0:02:27]} Re5 {[%emt 0:01:23]} 36. a6 {[%emt 0:00:16]} Kd7 {[%emt 0:01:25]} 37. Bb5 {[%emt 0:01:57]} Rxc5 {[%emt 0:00:14]} 38. Bxc6+ {[%emt 0:01:55]} Rxc6 {[%emt 0:00:08]} 39. Rb7+ {[%emt 0:00:10]} Rc7 {[%emt 0:00:25]} 40. Rb3 {[%emt 0:01:03]} Rc6 {[%emt 0:00:38]} 41. Rb7+ {[%emt 0:12:07]} Rc7 {[%emt 0:03:04]} 42. Rb3 {[%emt 0:00:53]} Ke6 {[%emt 0:02:50]} 43. Ke2 {[%emt 0:02:00]} Rc6 {[%emt 0:07:26]} 44. Ra3 {[%emt 0:00:05]} Rc5 {[%emt 0:05:37]} 45. Kd3 {[%emt 0:01:12]} h5 {[%emt 0:02:53]} 46. c4 {[%emt 0:01:31]} f4 {[%emt 0:01:11]} 47. Kd4 {[%emt 0:04:33]} Rf5 {[%emt 0:04:09]} 48. c5 {[%emt 0:04:55]} Rd5+ {[%emt 0:01:54]} 49. Kc4 {[%emt 0:00:04]} Rd2 {[%emt 0:00:56]} 50. gxf4 {[%emt 0:01:20]} h4 {[%emt 0:00:07]} 51. Ra1 {[%emt 0:04:07]} Rxf2 {[%emt 0:00:40]} 52. Rh1 {[%emt 0:00:08]} Rxf4+ {[%emt 0:04:36]} 53. Kb5 {[%emt 0:00:01]} Rf2 {[%emt 0:00:49]} 54. Re1+ {[%emt 0:01:53]} Kf6 {[%emt 0:01:53]} 55. c6 {[%emt 0:03:08]} Rxg2 {[%emt 0:00:59]} 56. Rc1 {[%emt 0:00:17]} Rb2+ {[%emt 0:00:12]} 57. Kc5 {[%emt 0:00:15]} Rb8 {[%emt 0:01:05]} 58. c7 {[%emt 0:00:06]} Rc8 {[%emt 0:00:12]} 59. Kc6 {[%emt 0:00:06]} h3 {[%emt 0:00:30]} 60. Rh1 {[%emt 0:01:09]} Kg5 {[%emt 0:01:53]} 61. Kb7 {[%emt 0:00:06]} Rxc7+ {[%emt 0:00:20]} 62. Kxc7 {[%emt 0:00:02]} Kh4 {[%emt 0:00:04]} 63. Kb7 {[%emt 0:01:11]} g3 {[%emt 0:00:07]} 64. Rf1 {[%emt 0:01:13]} g2 {[%emt 0:00:29]} 65. Rxf7 {[%emt 0:00:13]} h2 {[%emt 0:01:22]} 66. Rh7+ {[%emt 0:00:16]} Kg3 {[%emt 0:00:20]} 67. Rg7+ {[%emt 0:00:15]} Kf4 {[%emt 0:00:25]} 68. Rxg2 {[%emt 0:01:13]} h1=Q {[%emt 0:00:06]} 69. Kxa7 {[%emt 0:00:03]} Qxg2 {[%emt 0:00:05]} 70. Kb8 {[%emt 0:00:18]} Qb2+ {[%emt 0:00:13]} 71. Ka8 {[%emt 0:00:31]} Qc3 {[%emt 0:00:07]} 72. Kb7 {[%emt 0:00:38]} Qb4+ {[%emt 0:00:05]} 73. Ka8 {[%emt 0:01:14]} Qc4 {[%emt 0:00:05]} 74. Kb7 {[%emt 0:00:05]} Qb5+ {[%emt 0:04:09]} 0-1

[Event "Lueneburg Open-A 2019"]
[Site "Lueneburg"]
[Date "2019.08.08"]
[Round "6.6"]
[White "Weishaeutel, Moritz"]
[Black "Sriram, Jha"]
[Result "0-1"]
[ECO "B72"]
[WhiteElo "2276"]
[BlackElo "2381"]
[Annotator "NA"]
[PlyCount "86"]
[EventDate "2019.08.03"]
[EventType "swiss"]
[EventCountry "GER"]
[SourceTitle "playchess.com"]
[Source "ChessBase"]
[SourceQuality "1"]
[TimeControl "40/5400+30:1800+30"]

1. e4 {[%emt 1:30:30]} c5 {[%emt 0:00:41]} 2. Nf3 {[%emt 0:00:00]} d6 {[%emt 0:01:13]} 3. d4 {[%emt 0:00:00]} cxd4 {[%emt 0:00:24]} 4. Nxd4 {[%emt 0:00:00]} Nf6 {[%emt 0:00:09]} 5. Nc3 {[%emt 0:00:00]} g6 {[%emt 0:01:05]} 6. Be3 {[%emt 0:00:00]} Bg7 {[%emt 0:00:05]} 7. Be2 {[%emt 0:00:00]} O-O {[%emt 0:01:43]} 8. Qd2 {[%emt 0:00:00]} Nc6 {[%emt 0:16:34]} 9. O-O-O {[%emt 0:00:00]} Nxd4 {[%emt 0:02:39]} 10. Bxd4 {[%emt 0:00:00]} Qa5 {[%emt 0:00:05]} 11. h4 {[%emt 0:00:00]} Be6 {[%emt 0:00:23]} 12. Qg5 {[%emt 0:00:00]} Qxg5+ {[%emt 0:14:51]} 13. hxg5 {[%emt 0:00:00]} Nd7 {[%emt 0:01:31]} 14. Nd5 {[%emt 0:00:00]} Bxd5 {[%emt 0:01:32]} 15. exd5 {[%emt 0:00:00]} f6 {[%emt 0:02:54]} 16. Bb5 {[%emt 0:00:00]} Ne5 {[%emt 0:12:33]} 17. f4 {[%emt 0:00:00]} a6 {[%emt 0:00:37]} 18. Be2 {[%emt 0:00:00]} Nf7 {[%emt 0:01:47]} 19. gxf6 {[%emt 0:00:00]} exf6 {[%emt 0:00:23]} 20. Bg4 {[%emt 0:00:00]} f5 {[%emt 0:00:35]} 21. Bxg7 {[%emt 0:00:00]} Kxg7 {[%emt 0:00:02]} 22. Bf3 {[%emt 0:00:00]} Rac8 {[%emt 0:10:52]} 23. Rhe1 {[%emt 0:00:00]} Rc4 {[%emt 0:00:50]} 24. g3 {[%emt 0:00:00]} Rfc8 {[%emt 0:00:20]} 25. Rd2 {[%emt 0:00:00]} R8c7 {[%emt 0:00:17]} 26. Re6 {[%emt 0:00:00]} b5 {[%emt 0:04:42]} 27. Rde2 {[%emt 0:00:00]} h5 {[%emt 0:01:31]} 28. Re7 {[%emt 0:00:00]} Rxe7 {[%emt 0:09:08]} 29. Rxe7 {[%emt 0:00:00]} h4 {[%emt 0:00:01]} 30. Be2 {[%emt 0:00:00]} Ra4 {[%emt 0:03:00]} 31. b3 {[%emt 0:00:26]} hxg3 {[%emt 0:00:20]} 32. Bc4 {[%emt 0:04:23]} Rxa2 {[%emt 0:01:18]} 33. Kb1 {[%emt 0:00:00]} Ra5 {[%emt 0:01:42]} 34. Bf1 {[%emt 0:00:04]} b4 {[%emt 0:00:21]} 35. Bg2 {[%emt 0:01:47]} Rc5 {[%emt 0:00:17]} 36. Kc1 {[%emt 0:01:03]} g5 {[%emt 0:02:17]} 37. fxg5 {[%emt 0:00:56]} Kg6 {[%emt 0:00:06]} 38. Re3 {[%emt 0:01:55]} Rc3 {[%emt 0:00:54]} 39. Re7 {[%emt 0:03:21]} Nxg5 {[%emt 0:00:33]} 40. Rd7 {[%emt 0:00:05]} Nf7 {[%emt 0:01:26]} 41. Re7 {[%emt 0:30:33]} f4 {[%emt 0:31:29]} 42. Be4+ {[%emt 0:00:11]} Kg7 {[%emt 0:00:22]} 43. Re6 {[%emt 0:00:32]} Ne5 {[%emt 0:03:32]} 0-1